bitfinex/quotes_SOLUSD_20241215
["timestamp","ask_amount","ask_price","bid_price","bid_amount"]
[1734251155295,23.902374,217.15,217.02,8.07668031]
[1734251156408,23.902374,217.15,217.01,8.07668031]
[1734251159581,6.3909,217.16,217.06,8.07668031]
[1734251160189,6.3909,217.16,217.07,8.76752822]
[1734251161005,6.3909,217.16,217.06,8.07668031]
[1734251161399,6.3909,217.16,217.05,8.07668031]
[1734251161909,6.3909,217.16,217.06,30.0]
[1734251162412,6.3909,217.16,217.06,8.07668031]
[1734251163108,6.3909,217.16,217.06,8.76750707]
[1734251163771,6.3909,217.16,217.08,8.07668031]
[1734251163971,6.3909,217.16,217.09,0.69073423]
[1734251166175,6.3909,217.16,217.09,8.76741454]
[1734251166474,6.1104,217.21,217.1,8.07668031]
[1734251166670,6.1104,217.21,217.1,8.76734645]
[1734251167692,6.1104,217.21,217.1,8.07668031]
[1734251169586,6.1104,217.21,217.12,8.07668031]
[1734251169913,6.1104,217.21,217.14,8.07668031]
[1734251170215,6.5332,217.27,217.15,8.07668031]
[1734251170517,6.5332,217.27,217.15,8.76721077]
[1734251172025,6.5332,217.27,217.15,38.76721077]
[1734251173722,6.5332,217.27,217.15,30.69053046]
[1734251173887,6.5332,217.27,217.13,8.07668031]
[1734251174086,6.5332,217.27,217.14,30.0]
[1734251174498,6.5332,217.27,217.14,38.76726452]
[1734251175522,6.5332,217.27,217.14,8.76726452]
[1734251176030,6.5332,217.27,217.15,8.07668031]
[1734251176220,6.5332,217.27,217.15,8.76720337]
[1734251176400,6.5332,217.27,217.16,8.07668031]
[1734251177029,6.5332,217.27,217.15,0.69052306]
[1734251177030,6.5332,217.27,217.2,8.07668031]
[1734251177590,6.5332,217.27,217.17,0.69051878]
[1734251177591,6.5332,217.27,217.19,8.07668031]
[1734251179022,6.5332,217.27,217.2,8.07668031]
[1734251179715,6.5332,217.27,217.19,8.07668031]
[1734251179916,6.5332,217.27,217.18,0.69040127]
[1734251180122,6.5332,217.27,217.19,30.0]
[1734251180909,0.12549,217.26,217.19,30.0]
[1734251181098,24.027864,217.26,217.19,30.0]
[1734251181894,24.027864,217.26,217.13,0.69045755]
[1734251182141,24.027864,217.26,217.14,30.0]
[1734251182928,0.25098,217.26,217.14,38.07668031]
[1734251183136,0.25098,217.26,217.14,38.7672316]
[1734251183433,0.25098,217.26,217.14,30.0]
[1734251184324,6.5332,217.27,217.16,8.07668031]
[1734251184532,6.5332,217.27,217.16,8.767183]
[1734251184926,6.5332,217.27,217.17,8.07668031]
[1734251186919,6.5332,217.27,217.18,8.07668031]
[1734251190424,6.5332,217.27,217.17,28.07668031]
[1734251190727,6.5332,217.27,217.16,0.69050269]
[1734251191126,6.5332,217.27,217.16,8.767183]
[1734251191518,6.5332,217.27,217.17,30.0]
[1734251194343,6.5332,217.27,217.18,8.07668031]
[1734251199937,6.5332,217.27,217.19,8.07668031]
[1734251202951,6.5332,217.27,217.2,8.07668031]
[1734251203115,6.5332,217.27,217.21,8.07668031]
[1734251204242,0.12549,217.31,217.21,8.07668031]
[1734251204445,0.25098,217.31,217.2,8.07668031]
[1734251204957,20.25098,217.31,217.2,8.07668031]
[1734251206625,20.25098,217.31,217.21,8.07668031]
[1734251208129,20.25098,217.31,217.2,8.07668031]
[1734251209648,20.12549,217.31,217.2,8.07668031]
[1734251216952,20.12549,217.31,217.19,0.69042818]
[1734251217253,20.12549,217.31,217.2,30.0]
[1734251218433,20.0,217.31,217.2,30.0]
[1734251219847,20.0,217.31,217.19,0.69042818]
[1734251220551,20.0,217.29,217.19,0.69042818]
[1734251220854,20.0,217.29,217.14,8.07668031]
[1734251220855,6.5339,217.27,217.14,8.07668031]
[1734251221039,6.5339,217.27,217.15,30.69054088]
[1734251222458,6.5339,217.27,217.15,0.69054088]
[1734251222833,6.5339,217.27,217.16,30.0]
[1734251224766,6.5339,217.27,217.17,0.69052394]
[1734251225637,6.5339,217.27,217.16,30.0]
[1734251227667,6.1438,217.27,217.19,8.07668031]
[1734251227967,6.1438,217.27,217.2,0.69037429]
[1734251229765,6.1438,217.27,217.17,0.69040129]
[1734251230065,6.1438,217.27,217.19,30.0]
[1734251231847,6.1438,217.27,217.19,30.69040915]
[1734251232666,6.1438,217.27,217.19,30.0]
[1734251235767,6.1438,217.27,217.17,0.69047086]
[1734251235968,6.1438,217.27,217.15,8.07668031]
[1734251236165,6.1438,217.27,217.16,30.0]
[1734251236667,6.1438,217.27,217.15,8.76722194]
[1734251237169,6.1438,217.27,217.14,8.07668031]
[1734251237170,0.12549,217.26,217.14,8.07668031]
[1734251238744,0.12549,217.26,217.15,30.0]
[1734251241076,0.12549,217.26,217.15,38.07668031]
[1734251242274,6.1438,217.27,217.16,8.76723424]
[1734251247053,6.1438,217.27,217.15,8.07668031]
[1734251247254,0.12549,217.26,217.16,30.0]
[1734251247469,0.3901,217.25,217.16,30.0]
[1734251256208,0.3901,217.25,217.15,0.69059647]
[1734251257175,0.3901,217.25,217.14,8.07668031]
[1734251257373,0.3901,217.25,217.15,0.69056506]
[1734251259319,0.3901,217.25,217.16,30.0]
[1734251262007,0.3901,217.25,217.17,0.69055521]
[1734251263111,0.3901,217.25,217.17,8.76723552]
[1734251264608,0.3901,217.25,217.17,0.69055521]
[1734251265112,0.12549,217.24,217.13,20.69052252]
[1734251265306,0.12549,217.24,217.15,30.0]
[1734251265503,3.23150603,217.24,217.15,30.0]
[1734251266786,6.4282,217.21,217.15,30.0]
[1734251267892,6.4282,217.21,217.11,0.69071299]
[1734251268211,6.4282,217.21,217.12,30.0]
[1734251269719,6.4282,217.21,217.11,0.69071299]
[1734251270588,0.25098,217.2,217.08,20.69071924]
[1734251270838,0.25098,217.2,217.06,8.07668031]
[1734251270839,0.12549,217.18,217.06,8.07668031]
[1734251271123,20.12549,217.18,217.05,8.76746589]
[1734251271325,23.23150603,217.18,217.05,8.76746589]
[1734251272627,23.23150603,217.18,217.06,30.0]
[1734251275013,0.12549,217.15,217.06,30.0]
[1734251277015,20.0,217.13,217.04,30.0]
[1734251277307,0.51559,217.12,217.04,30.0]
[1734251277527,0.12549,217.1,217.04,30.0]
[1734251278031,0.12549,217.1,216.98,8.07668031]
[1734251278191,0.12549,217.1,216.99,30.0]
[1734251278515,24.027864,217.1,216.97,1.5357]
[1734251278723,24.027864,217.1,216.95,8.07668031]
[1734251278903,27.13388003,217.1,216.95,8.07668031]
[1734251279100,27.13388003,217.1,216.94,0.69110488]
[1734251279101,27.13388003,217.1,216.96,30.0]
[1734251279795,27.13388003,217.1,216.95,8.07668031]
[1734251280595,20.0,217.07,216.96,30.0]
[1734251282196,20.0,217.07,216.96,38.07668031]
[1734251283028,20.0,217.08,216.98,8.07668031]
[1734251283408,3.10601603,217.1,217.0,8.07668031]
[1734251283721,6.0581,217.11,217.01,8.76769193]
[1734251284637,6.0581,217.11,216.99,8.07668031]
[1734251284939,0.25098,217.1,217.0,30.0]
[1734251285299,6.0581,217.11,217.0,38.76773942]
[1734251285719,6.0581,217.11,217.01,8.07668031]
[1734251287191,6.0581,217.11,217.0,38.07668031]
[1734251287398,6.0581,217.11,217.0,30.0]
[1734251287618,24.027864,217.1,217.0,30.0]
[1734251287821,20.0,217.07,217.0,30.0]
[1734251288029,20.0,217.07,216.96,8.07668031]
[1734251289035,24.027864,217.1,216.97,8.07668031]
[1734251289337,24.027864,217.1,216.97,8.76784032]
[1734251289917,6.0581,217.11,217.0,8.07668031]
[1734251290105,6.0581,217.11,217.01,0.69101232]
[1734251290302,24.027864,217.1,216.95,0.69102326]
[1734251290505,0.12549,217.06,216.95,8.76770357]
[1734251291805,0.12549,217.06,216.96,30.0]
[1734251294337,0.12549,217.06,216.95,8.76770357]
[1734251294951,6.6348,217.05,216.95,0.69102326]
[1734251295157,7.0249,217.05,216.94,8.07668031]
[1734251295448,7.0249,217.05,216.95,30.0]
[1734251295817,0.12549,217.04,216.95,30.0]
[1734251296519,0.12549,217.04,216.94,8.07668031]
[1734251300425,0.12549,217.04,216.93,8.07668031]
[1734251301042,0.12549,217.04,216.94,30.0]
[1734251301549,0.12549,217.04,216.94,38.07668031]
[1734251304329,0.12549,217.04,216.94,30.0]
[1734251304661,0.12549,217.04,216.94,38.07668031]
[1734251305230,0.25098,217.04,216.94,30.0]
[1734251305742,20.0,217.01,216.94,30.0]
[1734251306139,20.0,217.01,216.9,8.07668031]
[1734251306331,20.0,217.01,216.91,38.07668031]
[1734251306530,0.25098,217.04,216.92,8.07668031]
[1734251306734,20.0,217.02,216.92,8.07668031]
[1734251307932,0.25098,217.04,216.93,8.07668031]
[1734251308432,0.25098,217.04,216.91,8.76794513]
[1734251308633,0.25098,217.04,216.92,8.07668031]
[1734251309537,0.25098,217.04,216.93,8.07668031]
[1734251310863,7.0249,217.05,216.96,8.07668031]
[1734251311033,7.0249,217.05,216.98,8.07668031]
[1734251311960,7.0249,217.05,216.97,8.07668031]
[1734251313856,6.6348,217.05,216.99,8.07668031]
[1734251314042,7.0332,217.1,217.0,8.07668031]
[1734251317669,6.6431,217.1,217.03,8.07668031]
[1734251318349,6.6431,217.1,217.02,8.07668031]
[1734251318855,6.6431,217.1,217.01,8.07668031]
[1734251319060,6.6431,217.1,217.0,8.07668031]
[1734251319262,6.6431,217.1,216.96,0.69095893]
[1734251319263,0.12549,217.09,216.98,8.07668031]
[1734251319472,0.12549,217.09,216.97,8.07668031]
[1734251320069,0.12549,217.09,216.98,30.0]
[1734251320432,0.3901,217.08,216.98,30.0]
[1734251320635,0.12549,217.07,216.98,30.0]
[1734251321777,0.12549,217.07,216.95,8.07668031]
[1734251322560,0.12549,217.05,216.88,1.5644]
[1734251322769,23.902374,217.06,216.91,8.07668031]
[1734251322770,0.25098,217.03,216.91,8.07668031]
[1734251322966,0.25098,217.03,216.9,38.07668031]
[1734251323846,0.25098,217.03,216.9,8.07668031]
[1734251324368,0.25098,217.03,216.91,8.07668031]
[1734251324671,0.25098,217.03,216.92,8.07668031]
[1734251325240,0.25098,217.03,216.91,8.07668031]
[1734251326748,0.25098,217.03,216.9,8.76801998]
[1734251328254,0.25098,217.03,216.91,8.07668031]
[1734251330771,0.25098,217.03,216.92,8.07668031]
[1734251331978,3.04088545,217.03,216.92,8.07668031]
[1734251332556,6.1226,217.04,216.96,8.07668031]
[1734251332764,6.1226,217.04,216.97,8.76781286]
[1734251332981,6.1226,217.04,216.97,8.07668031]
[1734251333177,6.1226,217.04,216.96,8.07668031]
[1734251337294,6.1226,217.04,216.97,8.07668031]
[1734251337655,0.3901,217.08,216.98,8.07668031]
[1734251341815,0.3901,217.08,216.99,8.76777724]
[1734251343487,0.3901,217.08,216.94,23.776884]
[1734251343488,0.3901,217.08,216.98,8.07668031]
[1734251344301,0.3901,217.08,216.97,20.0]
[1734251344807,0.25098,217.07,216.95,0.69106004]
[1734251344993,0.25098,217.07,216.96,8.07668031]
[1734251345197,0.25098,217.07,216.95,8.76774035]
[1734251346180,0.25098,217.07,216.92,8.07668031]
[1734251346181,20.12549,217.04,216.92,8.07668031]
[1734251346382,0.12549,217.04,216.91,8.76790908]
[1734251351314,0.12549,217.04,216.92,8.07668031]
[1734251355230,0.12549,217.01,216.9,8.07668031]
[1734251355437,0.3901,217.0,216.9,8.07668031]
[1734251356405,6.447,216.99,216.88,8.07668031]
[1734251361625,6.447,216.99,216.9,8.07668031]
[1734251361936,6.447,216.99,216.91,8.07668031]
[1734251363140,6.447,216.99,216.9,0.6913286]
[1734251363442,6.447,216.99,216.9,8.07668031]
[1734251363933,6.447,216.99,216.91,8.07668031]
[1734251367819,6.447,216.99,216.92,8.07668031]
[1734251368143,6.447,216.99,216.93,8.07668031]
[1734251370713,23.902374,217.05,216.93,8.07668031]
[1734251370714,6.5905,217.04,216.95,8.07668031]
[1734251371814,6.5905,217.04,216.93,0.69129723]
[1734251371815,6.5905,217.04,216.94,8.07668031]
[1734251372020,6.5905,217.04,216.92,20.0]
[1734251372021,0.12549,217.03,216.92,20.0]
[1734251372247,0.12549,217.03,216.92,8.07668031]
[1734251374236,0.12549,217.03,216.93,8.07668031]
[1734251375151,6.5905,217.04,216.96,8.07668031]
[1734251378618,6.5905,217.04,216.95,8.07668031]
[1734251382226,6.5905,217.04,216.96,8.07668031]
[1734251382556,6.5905,217.04,216.95,8.07668031]
[1734251385023,6.5905,217.04,216.96,8.07668031]
[1734251395039,6.5905,217.04,216.92,20.0]
[1734251395256,6.5905,217.04,216.94,8.07668031]
[1734251398434,6.5905,217.04,216.94,8.76791142]
[1734251398764,6.5905,217.04,216.96,8.07668031]
[1734251400368,6.5905,217.04,216.94,0.69123111]
[1734251400544,6.5905,217.04,216.95,8.07668031]
[1734251404456,6.5905,217.04,216.92,20.69125251]
[1734251404652,6.5905,217.04,216.95,8.07668031]
[1734251406574,6.5905,217.04,216.97,8.07668031]
[1734251406869,6.5905,217.04,216.99,8.07668031]
[1734251407369,6.5905,217.04,216.95,0.6912249]
[1734251407572,6.5905,217.04,216.99,8.07668031]
[1734251409083,6.3954,217.1,217.0,8.07668031]
[1734251409260,0.12549,217.09,217.0,8.07668031]
[1734251409463,6.3954,217.1,217.01,8.07668031]
[1734251411102,6.3954,217.1,216.97,0.6910477]
[1734251411103,6.3954,217.1,217.02,8.07668031]
[1734251412149,6.3954,217.1,217.04,8.07668031]
[1734251412382,6.3954,217.1,217.05,8.07668031]
[1734251414453,6.3954,217.16,217.06,8.07668031]
[1734251414664,6.3954,217.16,217.07,8.07668031]
[1734251416197,6.3954,217.16,217.08,8.07668031]
[1734251418643,6.3954,217.16,217.1,8.07668031]
[1734251418968,6.3954,217.16,217.08,8.07668031]
[1734251419170,6.3954,217.16,217.07,8.07668031]
[1734251419375,6.3954,217.16,217.04,2.21601722]
[1734251419582,6.3954,217.16,217.07,8.07668031]
[1734251420476,6.3954,217.16,217.04,2.21601722]
[1734251420793,6.3954,217.16,217.08,8.07668031]
[1734251424508,6.3954,217.16,217.09,8.07668031]
[1734251427280,6.3954,217.16,217.08,8.07668031]
[1734251430088,6.3954,217.16,217.09,8.07668031]
[1734251431784,6.3954,217.16,217.1,8.07668031]
[1734251432701,6.3954,217.16,217.04,2.21597628]
[1734251432899,6.3954,217.16,217.08,8.07668031]
[1734251434385,6.3954,217.16,217.05,30.0]
[1734251434702,6.3954,217.16,217.09,8.07668031]
[1734251435888,6.3954,217.16,217.1,8.07668031]
[1734251436107,2.75966783,217.21,217.07,0.69079673]
[1734251436108,9.23676783,217.21,217.11,8.07668031]
[1734251437602,9.23676783,217.21,217.1,8.07668031]
[1734251437803,9.23676783,217.21,217.06,0.12549]
[1734251438010,9.23676783,217.21,217.09,8.07668031]
[1734251438686,0.12549,217.2,217.05,0.69076489]
[1734251439024,23.902374,217.2,217.08,8.07668031]
[1734251440935,9.23676783,217.21,217.1,8.07668031]
[1734251441725,23.902374,217.2,217.09,8.07668031]
[1734251442096,23.902374,217.2,217.08,8.07668031]
[1734251442292,6.4771,217.16,217.03,20.0]
[1734251442597,0.12549,217.14,217.04,30.0]
[1734251443212,0.12549,217.14,217.04,8.07668031]
[1734251443718,24.166984,217.15,217.07,8.07668031]
[1734251443719,0.3901,217.15,217.07,8.07668031]
[1734251443889,0.3901,217.15,217.08,8.07668031]
[1734251448329,0.3901,217.15,217.07,8.07668031]
[1734251450519,0.3901,217.15,217.04,0.12549]
[1734251450719,0.3901,217.15,217.06,8.07668031]
[1734251454844,0.3901,217.15,217.07,8.07668031]
[1734251455002,0.3901,217.15,217.08,8.07668031]
[1734251455210,6.4771,217.16,217.08,8.07668031]
[1734251455635,6.4771,217.16,217.1,8.07668031]
[1734251457438,6.4771,217.16,217.09,8.07668031]
[1734251458142,6.4771,217.16,217.08,8.76743608]
[1734251460307,0.3901,217.2,217.11,8.07668031]
[1734251460511,0.3901,217.2,217.12,8.07668031]
[1734251461643,0.3901,217.2,217.13,8.07668031]
[1734251461827,6.3388,217.21,217.14,8.07668031]
[1734251462618,0.3901,217.25,217.15,8.07668031]
[1734251462619,20.0,217.24,217.15,8.07668031]
[1734251463029,20.0,217.24,217.13,0.69055397]
[1734251463030,20.0,217.24,217.14,8.07668031]
[1734251463420,20.0,217.24,217.16,8.07668031]
[1734251463665,20.0,217.24,217.17,8.07668031]
[1734251463818,0.3901,217.25,217.17,8.07668031]
[1734251467317,6.3388,217.27,217.19,8.07668031]
[1734251469031,6.3388,217.27,217.18,8.07668031]
[1734251469554,0.3901,217.3,217.21,8.07668031]
[1734251469730,0.3901,217.3,217.23,8.07668031]
[1734251470129,0.3901,217.3,217.24,8.07668031]
[1734251470329,6.6948442,217.32,217.25,8.07668031]
[1734251470734,6.6948442,217.32,217.23,8.07668031]
[1734251471635,6.6948442,217.32,217.24,8.07668031]
[1734251473952,6.6948442,217.32,217.25,8.07668031]
[1734251474544,6.6948442,217.32,217.23,8.07668031]
[1734251474749,6.6948442,217.32,217.22,8.07668031]
[1734251474926,6.6948442,217.32,217.24,8.07668031]
[1734251475449,6.6948442,217.32,217.23,8.07668031]
[1734251476921,6.6948442,217.32,217.25,8.07668031]
[1734251477434,6.6948442,217.32,217.26,8.07668031]
[1734251478453,0.5617442,217.32,217.26,8.07668031]
[1734251478754,0.5617442,217.32,217.27,8.07668031]
[1734251479550,0.5617442,217.32,217.23,8.07668031]
[1734251480229,0.5617442,217.32,217.26,8.07668031]
[1734251480856,0.5617442,217.32,217.28,8.07668031]
[1734251482769,0.5617442,217.32,217.29,8.07668031]
[1734251483851,0.5617442,217.32,217.24,0.69014947]
[1734251484056,0.5617442,217.32,217.29,8.07668031]
[1734251485187,0.5617442,217.32,217.31,8.07668031]
[1734251486478,0.5617442,217.32,217.31,31.97905431]
[1734251487277,0.5617442,217.32,217.3,0.69013038]
[1734251487449,0.5617442,217.32,217.31,8.07668031]
[1734251488450,0.5617442,217.32,217.31,38.07668031]
[1734251490575,0.5617442,217.32,217.31,30.0]
[1734251490765,0.5617442,217.32,217.31,38.07668031]
[1734251491786,0.5617442,217.32,217.31,62.10454431]
[1734251492774,0.5617442,217.32,217.31,196.80454431]
[1734251498878,0.3901,217.46,217.36,23.776884]
[1734251499100,6.1331,217.47,217.41,8.07668031]
[1734251500204,6.1331,217.47,217.42,8.07668031]
[1734251500400,6.1331,217.47,217.43,8.07668031]
[1734251500789,0.3901,217.51,217.43,8.07668031]
[1734251501174,0.3901,217.51,217.44,8.07668031]
[1734251501491,0.3901,217.51,217.44,38.07668031]
[1734251502005,0.3901,217.51,217.44,30.0]
[1734251503089,0.3901,217.51,217.44,38.07668031]
[1734251503875,0.3901,217.51,217.45,8.07668031]
[1734251504076,0.3901,217.51,217.45,38.07668031]
[1734251504295,0.3901,217.51,217.45,30.0]
[1734251508705,0.3901,217.51,217.41,30.0]
[1734251508889,0.3901,217.51,217.42,8.07668031]
[1734251509101,0.3901,217.51,217.43,8.07668031]
[1734251511112,0.3901,217.51,217.41,8.07668031]
[1734251511911,0.3901,217.51,217.42,8.07668031]
[1734251512211,0.3901,217.51,217.43,30.0]
[1734251516988,0.3901,217.51,217.4,8.07668031]
[1734251517510,0.3901,217.51,217.41,30.0]
[1734251518398,6.4586,217.48,217.41,30.0]
[1734251519109,6.4586,217.48,217.35,0.12549]
[1734251520837,9.08226071,217.48,217.32,0.25098]
[1734251521009,20.0,217.45,217.32,8.32766031]
[1734251521325,20.0,217.45,217.33,8.07668031]
[1734251521742,3.84988144,217.47,217.35,8.20217031]
[1734251522098,3.84988144,217.47,217.36,30.0]
[1734251523005,20.0,217.43,217.36,30.0]
[1734251523201,6.9305,217.42,217.36,30.0]
[1734251523525,20.0,217.39,217.27,8.07668031]
[1734251523704,20.0,217.39,217.28,0.12549]
[1734251524738,20.0,217.39,217.28,30.12549]
[1734251525929,20.0,217.39,217.28,30.0]
[1734251526601,20.0,217.39,217.28,38.07668031]
[1734251527498,20.0,217.39,217.29,8.20217031]
[1734251527929,20.0,217.39,217.28,30.0]
[1734251528133,20.0,217.38,217.28,30.0]
[1734251529734,20.0,217.34,217.28,30.0]
[1734251530114,20.0,217.34,217.22,30.0]
[1734251530444,20.0,217.34,217.18,2.20054275]
[1734251530445,6.5993,217.33,217.18,9.58698031]
[1734251530609,0.3901,217.29,217.17,8.07668031]
[1734251531124,0.3901,217.29,217.18,30.0]
[1734251532905,0.3901,217.29,217.19,8.20217031]
[1734251533622,0.3901,217.29,217.2,30.0]
[1734251534815,0.3901,217.29,217.2,38.07668031]
[1734251535445,0.3901,217.29,217.2,30.0]
[1734251536946,10.05908144,217.33,217.23,8.07668031]
[1734251537110,6.5993,217.33,217.24,8.07668031]
[1734251537537,6.5993,217.33,217.23,8.20217031]
[1734251538924,6.5993,217.33,217.24,30.0]
[1734251539612,6.5993,217.33,217.24,38.07668031]
[1734251539807,6.5993,217.33,217.25,8.07668031]
[1734251541605,6.5993,217.33,217.24,38.7669356]
[1734251542009,6.5993,217.33,217.25,24.027864]
[1734251542211,20.0,217.37,217.27,0.12549]
[1734251542938,20.0,217.37,217.27,30.12549]
[1734251544144,20.0,217.37,217.27,0.12549]
[1734251544521,20.0,217.37,217.25,23.776884]
[1734251544730,20.0,217.37,217.24,20.0]
[1734251544927,6.5993,217.36,217.22,0.69019918]
[1734251545127,20.0,217.33,217.21,9.58698031]
[1734251545330,20.0,217.33,217.22,8.20217031]
[1734251546842,6.5993,217.36,217.23,8.07668031]
[1734251547041,6.5993,217.36,217.24,32.10454431]
[1734251547346,6.5993,217.36,217.23,8.07668031]
[1734251547640,6.5993,217.36,217.22,8.07668031]
[1734251547941,6.5993,217.36,217.23,30.0]
[1734251551347,6.3367,217.31,217.23,30.0]
[1734251552239,6.3367,217.31,217.16,1.5801]
[1734251552448,20.0,217.28,217.18,30.0]
[1734251558437,20.0,217.28,217.16,8.07668031]
[1734251559424,20.0,217.28,217.14,8.07668031]
[1734251559945,20.0,217.28,217.15,0.12549]
[1734251560523,20.0,217.28,217.14,0.12549]
[1734251560849,20.0,217.28,217.15,8.07668031]
[1734251561632,20.0,217.28,217.16,30.0]
[1734251566337,6.7268,217.29,217.16,30.0]
[1734251570653,23.902374,217.28,217.16,30.0]
[1734251571773,20.0,217.25,217.16,30.0]
[1734251571978,6.1916,217.24,217.16,30.0]
[1734251572260,0.3901,217.23,217.1,0.12549]
[1734251572463,0.3901,217.23,217.11,30.0]
[1734251572645,20.0,217.21,217.11,30.0]
[1734251573738,20.0,217.21,217.09,30.0]
[1734251574071,6.1916,217.2,217.09,30.0]
[1734251575144,6.1916,217.2,217.08,30.0]
[1734251575365,20.0,217.17,217.08,30.0]
[1734251580552,20.0,217.17,217.09,30.0]
[1734251583794,20.0,217.17,217.08,30.0]
[1734251586071,6.1916,217.2,217.11,8.07668031]
[1734251587548,6.1916,217.2,217.09,0.12549]
[1734251587743,6.1916,217.2,217.09,8.20217031]
[1734251587958,6.1916,217.2,217.11,30.0]
[1734251588558,6.1916,217.2,217.09,8.20217031]
[1734251588956,6.1916,217.2,217.1,8.07668031]
[1734251589471,6.1916,217.2,217.11,8.07668031]
[1734251589661,6.1916,217.2,217.13,8.07668031]
[1734251589860,20.0,217.22,217.13,8.07668031]
[1734251590172,0.3901,217.23,217.13,8.76731127]
[1734251590954,0.3901,217.23,217.13,8.07668031]
[1734251591255,0.3901,217.23,217.12,0.12549]
[1734251591469,0.3901,217.23,217.12,30.12549]
[1734251591771,0.3901,217.23,217.13,8.07668031]
[1734251592470,0.3901,217.23,217.14,30.0]
[1734251600378,6.1795,217.25,217.15,8.20217031]
[1734251600576,6.1795,217.25,217.17,0.12549]
[1734251600762,6.1795,217.25,217.17,8.20217031]
[1734251600964,0.3901,217.28,217.17,8.20217031]
[1734251601590,0.3901,217.28,217.18,8.07668031]
[1734251601980,0.3901,217.28,217.19,0.25098]
[1734251602295,0.3901,217.28,217.19,8.32766031]
[1734251603271,0.3901,217.28,217.19,38.32766031]
[1734251603461,0.3901,217.28,217.19,8.32766031]
[1734251603963,0.3901,217.28,217.2,8.07668031]
[1734251604668,6.6291,217.3,217.21,0.25098]
[1734251607490,6.6291,217.3,217.21,8.32766031]
[1734251607693,6.6291,217.3,217.21,38.32766031]
[1734251609485,20.3901,217.34,217.23,0.12549]
[1734251609683,20.0,217.32,217.23,0.12549]
[1734251612118,0.3901,217.34,217.23,0.12549]
[1734251612416,0.3901,217.34,217.21,8.20217031]
[1734251612576,0.3901,217.34,217.22,0.12549]
[1734251612884,3.11294457,217.34,217.22,0.12549]
[1734251613404,0.3901,217.34,217.23,0.12549]
[1734251622432,0.3901,217.34,217.22,0.12549]
[1734251622600,0.3901,217.34,217.2,28.07668031]
[1734251622802,3.87280141,217.34,217.21,0.25098]
[1734251623012,3.87280141,217.34,217.21,8.32766031]
[1734251623232,3.87280141,217.34,217.22,8.07668031]
[1734251624493,3.87280141,217.34,217.23,0.12549]
[1734251624898,3.87280141,217.34,217.25,0.12549]
[1734251625201,3.48270141,217.34,217.26,0.12549]
[1734251627516,6.5558,217.35,217.26,0.12549]
[1734251629712,6.5558,217.35,217.26,32.10454431]
[1734251630022,3.87280141,217.39,217.28,8.07668031]
[1734251631401,3.87280141,217.39,217.29,8.20217031]
[1734251632515,3.87280141,217.39,217.3,8.07668031]
[1734251633026,3.87280141,217.39,217.31,8.07668031]
[1734251636210,0.3901,217.44,217.34,8.07668031]
[1734251636428,0.3901,217.44,217.35,8.07668031]
[1734251636721,0.3901,217.44,217.36,0.12549]
[1734251636910,0.3901,217.44,217.36,8.20217031]
[1734251638441,0.3901,217.44,217.36,0.12549]
[1734251639205,0.3901,217.44,217.35,8.20217031]
[1734251640417,3.87280141,217.44,217.35,8.20217031]
[1734251642009,3.87280141,217.44,217.35,0.12549]
[1734251643930,3.87280141,217.44,217.33,0.12549]
[1734251644148,3.48270141,217.43,217.33,8.07668031]
[1734251647336,3.48270141,217.43,217.34,8.07668031]
[1734251647519,3.48270141,217.43,217.36,8.07668031]
[1734251647914,9.88440141,217.43,217.36,8.07668031]
[1734251648115,9.88440141,217.43,217.35,8.20217031]
[1734251648318,9.88440141,217.43,217.35,0.12549]
[1734251650649,9.88440141,217.43,217.35,8.07668031]
[1734251653523,9.88440141,217.43,217.37,8.07668031]
[1734251653722,3.48270141,217.43,217.38,8.07668031]
[1734251653917,3.48270141,217.43,217.39,8.07668031]
[1734251654127,0.3901,217.49,217.39,8.07668031]
[1734251654347,3.48270141,217.5,217.42,8.07668031]
[1734251654518,8.07668,217.47,217.42,8.07668031]